fUSD/lending_fUSD_20240614
["ID","MTS","AMOUNT","RATE_DAILY","PERIOD"]
[329417677,1718328713599,-500.0,0.00025479,3]
[329417678,1718328713611,-500.0,0.00025479,3]
[329417679,1718328713623,-500.0,0.00025479,3]
[329417680,1718328713637,-500.0,0.00025479,3]
[329417681,1718328713660,-500.0,0.00025479,3]
[329417682,1718328713683,-500.0,0.00025479,3]
[329417683,1718328713707,-500.0,0.00025479,3]
[329417684,1718328713722,-500.0,0.00025479,3]
[329417685,1718328713736,-559.6767464,0.00025479,3]
[329417686,1718328713774,-200.0,0.00025479,3]
[329417687,1718328713798,-500.0,0.00025479,3]
[329417688,1718328713816,-500.0,0.00025479,3]
[329417689,1718328713830,-500.0,0.00025479,3]
[329417690,1718328713843,-500.0,0.00025479,3]
[329417691,1718328713855,-500.0,0.00025479,3]
[329417692,1718328713888,-500.0,0.00025479,3]
[329417693,1718328713899,-214.43869683,0.00025479,3]
[329417694,1718328713911,-500.0,0.00025479,3]
[329417695,1718328713930,-500.0,0.00025479,3]
[329417696,1718328713944,-539.14,0.00025479,3]
[329417697,1718328713957,-500.0,0.00025479,3]
[329417698,1718328713974,-643.3393742,0.00025479,3]
[329417699,1718328713985,-500.0,0.00025479,3]
[329417700,1718328713996,-500.0,0.00025479,3]
[329417701,1718328714013,-500.0,0.00025479,3]
[329417702,1718328714033,-539.62,0.00025479,3]
[329417703,1718328714048,-500.0,0.00025479,3]
[329417704,1718328714069,-500.0,0.00025479,3]
[329417705,1718328714084,-500.0,0.00025479,3]
[329417706,1718328714100,-804.49,0.00025479,3]
[329417707,1718328714136,-500.0,0.00025479,3]
[329417708,1718328714162,-232.87021495,0.00025479,3]
[329417709,1718328714185,-500.0,0.00025479,3]
[329417710,1718328714196,-500.0,0.00025479,3]
[329417711,1718328714210,-454.79,0.00025479,3]
[329417712,1718328714227,-572.62,0.00025479,3]
[329417713,1718328714239,-571.51855959,0.00025479,2]
[329417714,1718328714256,-500.0,0.00025479,3]
[329417715,1718328714269,-500.0,0.00025479,3]
[329417716,1718328714287,-500.0,0.00025479,3]
[329417717,1718328714297,-500.0,0.00025479,3]
[329417718,1718328714311,-500.0,0.00025479,3]
[329417719,1718328714324,-546.92331683,0.00025479,3]
[329417720,1718328714335,-774.54,0.00025479,3]
[329417721,1718328714349,-986.18,0.00025479,3]
[329417722,1718328714366,-500.0,0.00025479,3]
[329417723,1718328714378,-509.0278831,0.00025479,3]
[329417724,1718328714390,-500.0,0.00025479,3]
[329417725,1718328714402,-500.0,0.00025479,3]
[329417726,1718328714425,-500.0,0.00025479,3]
[329417727,1718328714439,-500.0,0.00025479,3]
[329417728,1718328714464,-500.0,0.00025479,3]
[329417729,1718328714478,-500.0,0.00025479,3]
[329417730,1718328714502,-1157.92,0.00025479,3]
[329417731,1718328714515,-500.0,0.00025479,3]
[329417732,1718328714528,-500.0,0.00025479,3]
[329417733,1718328714544,-500.0,0.00025479,3]
[329417734,1718328714561,-500.0,0.00025479,3]
[329417735,1718328714578,-500.0,0.00025479,3]
[329417736,1718328714590,-500.0,0.00025479,3]
[329417737,1718328714622,-500.0,0.00025479,3]
[329417738,1718328714642,-500.0,0.00025479,3]
[329417739,1718328714668,-500.0,0.00025479,3]
[329417740,1718328714688,-500.0,0.00025479,3]
[329417741,1718328714729,-500.0,0.00025479,3]
[329417742,1718328714748,-500.0,0.00025479,3]
[329417743,1718328714761,-500.0,0.00025479,3]
[329417744,1718328714776,-500.0,0.00025479,3]
[329417745,1718328714798,-500.0,0.00025479,3]
[329417746,1718328714817,-500.0,0.00025479,3]
[329417747,1718328714876,-500.0,0.00025479,3]
[329417748,1718328714893,-500.0,0.00025479,3]
[329417749,1718328714904,-500.0,0.00025479,3]
[329417750,1718328714924,-500.0,0.00025479,3]
[329417751,1718328714936,-500.0,0.00025479,3]
[329417752,1718328714950,-500.0,0.00025479,3]
[329417753,1718328714974,-604.28,0.00025479,3]
[329417754,1718328714987,-500.0,0.00025479,3]
[329417755,1718328715008,-500.0,0.00025479,3]
[329417756,1718328715029,-500.0,0.00025479,3]
[329417757,1718328715052,-500.0,0.00025479,3]
[329417758,1718328715078,-611.61,0.00025479,3]
[329417759,1718328715090,-583.88,0.00025479,3]
[329417760,1718328715111,-500.0,0.00025479,3]
[329417761,1718328715128,-500.0,0.00025479,3]
[329417762,1718328715155,-574.1,0.00025479,3]
[329417763,1718328715179,-500.0,0.00025479,3]
[329417764,1718328715190,-614.92099686,0.00025479,3]
[329417765,1718328715204,-500.0,0.00025479,3]
[329417766,1718328715216,-500.0,0.00025479,3]
[329417767,1718328715234,-548.53,0.00025479,3]
[329417768,1718328715248,-500.0,0.00025479,3]
[329417769,1718328715260,-500.0,0.00025479,3]
[329417770,1718328715271,-500.0,0.00025479,3]
[329417771,1718328715285,-692.1,0.00025479,3]
[329417772,1718328715296,-508.30448567,0.00025479,3]
[329417773,1718328715308,-500.0,0.00025479,3]
[329417774,1718328715327,-634.92,0.00025479,3]
[329417775,1718328715346,-500.0,0.00025479,3]
[329417776,1718328715362,-500.0,0.00025479,3]
[329417777,1718328715380,-588.02,0.00025479,3]
[329417778,1718328715394,-500.0,0.00025479,3]
[329417779,1718328715406,-500.0,0.00025479,3]
[329417780,1718328715431,-500.0,0.00025479,3]
[329417781,1718328715446,-660.68,0.00025479,3]
[329417782,1718328715458,-960.66,0.00025479,3]
[329417783,1718328715470,-500.0,0.00025479,3]
[329417784,1718328715483,-500.0,0.00025479,3]
[329417785,1718328715496,-500.0,0.00025479,3]
[329417786,1718328715510,-1302.28,0.00025479,3]
[329417787,1718328715525,-500.0,0.00025479,3]
[329417788,1718328715543,-500.0,0.00025479,3]
[329417789,1718328715570,-500.0,0.00025479,3]
[329417790,1718328715589,-500.0,0.00025479,3]
[329417791,1718328715609,-500.0,0.00025479,3]
[329417792,1718328715626,-617.28,0.00025479,3]
[329417793,1718328715644,-500.0,0.00025479,3]
[329417794,1718328715655,-565.86,0.00025479,3]
[329417795,1718328715667,-500.0,0.00025479,3]
[329417796,1718328715698,-500.0,0.00025479,3]
[329417797,1718328715744,-500.0,0.00025479,3]
[329417798,1718328715756,-500.0,0.00025479,3]
[329417799,1718328715773,-500.0,0.00025479,3]
[329417800,1718328715790,-500.0,0.00025479,3]
[329417801,1718328715844,-883.98,0.00025479,3]
[329417802,1718328715865,-528.45,0.00025479,3]
[329417803,1718328715882,-500.0,0.00025479,3]
[329417804,1718328715924,-233.47300179,0.00025479,3]
[329417805,1718328715956,-742.73,0.00025479,3]
[329417806,1718328715979,-459.16541285,0.00025479,3]
[329417807,1718328716158,-500.0,0.00025479,3]
[329417808,1718328716170,-500.0,0.00025479,3]
[329417809,1718328716187,-500.0,0.00025479,3]
[329417810,1718328716201,-500.0,0.00025479,3]
[329417811,1718328716215,-500.0,0.00025479,3]
[329417812,1718328716230,-500.0,0.00025479,3]
[329417813,1718328716241,-500.0,0.00025479,3]
[329417814,1718328716255,-500.0,0.00025479,3]
[329417815,1718328716288,-500.0,0.00025479,3]
[329417816,1718328716300,-500.0,0.00025479,3]
[329417817,1718328716314,-500.0,0.00025479,3]
[329417818,1718328716327,-500.0,0.00025479,3]
[329417819,1718328716339,-500.0,0.00025479,3]
[329417820,1718328716377,-500.0,0.00025479,3]
[329417821,1718328716396,-500.0,0.00025479,3]
[329417822,1718328716410,-500.0,0.00025479,3]
[329417823,1718328716420,-598.84,0.00025479,3]
[329417824,1718328716432,-500.0,0.00025479,3]
[329417825,1718328716445,-500.0,0.00025479,3]
[329417826,1718328716461,-500.0,0.00025479,3]
[329417827,1718328716476,-500.0,0.00025479,3]
[329417828,1718328716496,-500.0,0.00025479,3]
[329417829,1718328716507,-719.93,0.00025479,3]
[329417830,1718328716526,-500.0,0.00025479,3]
[329417831,1718328716544,-500.0,0.00025479,3]
[329417832,1718328716562,-500.0,0.00025479,3]
[329417833,1718328716582,-500.0,0.00025479,3]
[329417834,1718328716597,-566.94759276,0.00025479,3]
[329417835,1718328716609,-500.0,0.00025479,3]
[329417836,1718328716631,-500.0,0.00025479,3]
[329417837,1718328716646,-500.0,0.00025479,3]
[329417838,1718328716683,-500.0,0.00025479,3]
[329417839,1718328716695,-500.0,0.00025479,3]
[329417840,1718328716708,-500.0,0.00025479,3]
[329417841,1718328716720,-570.6707365,0.00025479,3]
[329417842,1718328716736,-500.0,0.00025479,3]
[329417843,1718328716753,-500.0,0.00025479,3]
[329417844,1718328716765,-500.0,0.00025479,3]
[329417845,1718328716776,-342.56939352,0.00025479,3]
[329417846,1718328716789,-500.0,0.00025479,3]
[329417847,1718328716801,-442.84,0.00025479,3]
[329417848,1718328716813,-997.89,0.00025479,3]
[329417849,1718328716827,-500.0,0.00025479,3]
[329417850,1718328716840,-500.0,0.00025479,3]
[329417851,1718328716852,-500.0,0.00025479,3]
[329417852,1718328716866,-500.0,0.00025479,3]
[329417853,1718328716877,-500.0,0.00025479,3]
[329417854,1718328716890,-1232.27,0.00025479,3]
[329417855,1718328716901,-500.0,0.00025479,3]
[329417856,1718328716913,-500.0,0.00025479,3]
[329417857,1718328716925,-500.0,0.00025479,3]
[329417858,1718328716937,-500.0,0.00025479,3]
[329417859,1718328716948,-500.0,0.00025479,3]
[329417860,1718328716970,-500.0,0.00025479,3]
[329417861,1718328716983,-695.7,0.00025479,3]
[329417862,1718328716996,-500.0,0.00025479,3]
[329417863,1718328717015,-545.28,0.00025479,3]
[329417864,1718328717029,-552.3,0.00025479,3]
[329417865,1718328717041,-500.0,0.00025479,3]
[329417866,1718328717063,-500.0,0.00025479,3]
[329417867,1718328717074,-500.0,0.00025479,3]
[329417868,1718328717096,-500.0,0.00025479,3]
[329417869,1718328717114,-500.0,0.00025479,3]
[329417870,1718328717128,-500.0,0.00025479,3]
[329417871,1718328717146,-922.06,0.00025479,3]
[329417872,1718328717161,-1020.66,0.00025479,3]
[329417873,1718328717186,-500.0,0.00025479,3]
[329417874,1718328717197,-500.0,0.00025479,3]
[329417875,1718328717217,-1333.56,0.00025479,3]
[329417876,1718328717228,-500.0,0.00025479,3]
[329417877,1718328717245,-578.22,0.00025479,3]
[329417878,1718328717272,-500.0,0.00025479,3]
[329417879,1718328717286,-500.0,0.00025479,3]
[329417880,1718328717297,-500.0,0.00025479,3]
[329417881,1718328717309,-500.0,0.00025479,3]
[329417882,1718328717322,-560.76689661,0.00025479,3]
[329417883,1718328717335,-904.07,0.00025479,3]
[329417884,1718328717350,-556.85,0.00025479,3]
[329417885,1718328717367,-500.0,0.00025479,3]
[329417886,1718328717387,-903.49,0.00025479,3]
[329417887,1718328717402,-500.0,0.00025479,3]
[329417888,1718328717416,-512.2,0.00025479,3]
[329417889,1718328717432,-500.0,0.00025479,3]
[329417890,1718328717448,-500.0,0.00025479,3]
[329417891,1718328717464,-1002.39,0.00025479,3]
[329417892,1718328717482,-738.2,0.00025479,3]
[329417893,1718328717498,-500.0,0.00025479,3]
[329417894,1718328717515,-500.0,0.00025479,3]
[329417895,1718328717534,-500.0,0.00025479,3]
[329417896,1718328717585,-500.0,0.00025479,3]
[329417897,1718328717604,-500.0,0.00025479,3]
[329417898,1718328717649,-798.44,0.00025479,3]
[329417899,1718328717664,-500.0,0.00025479,3]
[329417900,1718328717744,-262.1,0.00025479,3]
[329417901,1718328717762,-500.0,0.00025479,3]
[329417902,1718328717780,-500.0,0.00025479,3]
[329417903,1718328717796,-500.0,0.00025479,3]
[329417904,1718328717816,-500.0,0.00025479,3]
[329417905,1718328717871,-500.0,0.00025479,3]
[329417906,1718328717892,-500.0,0.00025479,3]
[329417907,1718328717934,-591.59,0.00025479,3]
[329417908,1718328717978,-500.0,0.00025479,3]
[329417909,1718328717998,-500.0,0.00025479,3]
[329417910,1718328718029,-500.0,0.00025479,3]
[329417911,1718328718054,-659.35,0.00025479,3]
[329417912,1718328718076,-500.0,0.00025479,3]
[329417913,1718328718113,-500.0,0.00025479,3]
[329417914,1718328718141,-569.74,0.00025479,3]
[329417915,1718328718163,-621.41,0.00025479,3]
[329417916,1718328718175,-549.56,0.00025479,3]
[329417917,1718328718214,-500.0,0.00025479,3]
[329417918,1718328718247,-630.44,0.00025479,3]
[329417919,1718328718288,-500.0,0.00025479,3]
[329417920,1718328718328,-254.52659976,0.00025479,3]
[329417921,1718328718376,-500.0,0.00025479,3]
[329417922,1718328718404,-500.0,0.00025479,3]
[329417923,1718328718452,-500.0,0.00025479,3]
[329417924,1718328718475,-500.0,0.00025479,3]
[329417925,1718328718486,-500.0,0.00025479,3]
[329417926,1718328718511,-500.0,0.00025479,3]
[329417927,1718328718522,-2024.27,0.00025479,3]
[329417928,1718328718535,-550.31,0.00025479,3]
[329417929,1718328718548,-661.6,0.00025479,3]
[329417930,1718328718563,-500.0,0.00025479,3]
[329417931,1718328718579,-1051.97,0.00025479,3]
[329417932,1718328718591,-500.0,0.00025479,3]
[329417933,1718328718604,-2230.14,0.00025479,3]
[329417934,1718328718622,-560.51,0.00025479,3]
[329417935,1718328718645,-699.68,0.00025479,3]
[329417936,1718328718657,-500.0,0.00025479,3]
[329417937,1718328718678,-1026.29,0.00025479,3]
[329417938,1718328718701,-500.0,0.00025479,3]
[329417939,1718328718718,-6651.01,0.00025479,3]
[329417940,1718328718750,-500.0,0.00025479,3]
[329417941,1718328718778,-500.0,0.00025479,3]
[329417942,1718328718790,-500.0,0.00025479,3]
[329417943,1718328718804,-905.81,0.00025479,3]
[329417944,1718328718821,-500.0,0.00025479,3]
[329417945,1718328718858,-500.0,0.00025479,3]
[329417946,1718328718870,-807.05,0.00025479,3]
[329417947,1718328718882,-500.0,0.00025479,3]
[329417948,1718328718894,-2365.65,0.00025479,3]
[329417949,1718328718914,-500.0,0.00025479,3]
[329417950,1718328718924,-179.16919,0.00025479,7]
[329417951,1718328718935,-500.0,0.00025479,3]
[329417952,1718328718947,-500.0,0.00025479,3]
[329417953,1718328718961,-593.15,0.00025479,3]
[329417954,1718328718974,-179.16919,0.00025479,7]
[329417955,1718328718987,-2105.93,0.00025479,3]
[329417956,1718328719006,-500.0,0.00025479,3]
[329417957,1718328719035,-843.89,0.00025479,3]
[329417958,1718328719047,-500.0,0.00025479,3]
[329417959,1718328719060,-500.0,0.00025479,3]
[329417960,1718328719076,-500.0,0.00025479,3]
[329417961,1718328719117,-500.0,0.00025479,3]
[329417962,1718328719170,-598.1,0.00025479,3]
[329417963,1718328719199,-7638.61,0.00025479,3]
[329417964,1718328719224,-699.16,0.00025479,3]
[329417965,1718328719245,-3190.81,0.00025479,3]
[329417966,1718328719267,-3649.11,0.00025479,3]
[329417967,1718328719278,-500.0,0.00025479,3]
[329417968,1718328719291,-1217.69,0.00025479,3]
[329417969,1718328719311,-2721.15,0.00025479,3]
[329417970,1718328719326,-500.0,0.00025479,3]
[329417971,1718328719343,-500.0,0.00025479,3]
[329417972,1718328719365,-500.0,0.00025479,3]
[329417973,1718328719390,-500.0,0.00025479,3]
[329417974,1718328719408,-1011.07,0.00025479,3]
[329417975,1718328719421,-1346.53,0.00025479,3]
[329417976,1718328719439,-500.0,0.00025479,3]
[329417977,1718328719458,-13586.59,0.00025479,3]
[329417978,1718328719479,-2862.08,0.00025479,3]
[329417979,1718328719530,-680.82,0.00025479,3]
[329417980,1718328719558,-2933.81,0.00025479,3]
[329417981,1718328719590,-500.0,0.00025479,3]
[329417982,1718328719616,-761.51,0.00025479,3]
[329417983,1718328719648,-500.0,0.00025479,3]
[329417984,1718328719672,-2631.81,0.00025479,3]
[329417985,1718328719687,-563.33,0.00025479,3]
[329417986,1718328719703,-1745.88,0.00025479,3]
[329417987,1718328719718,-500.0,0.00025479,3]
[329417988,1718328719752,-409.98,0.00025479,3]
[329417989,1718328719768,-500.0,0.00025479,3]
[329417990,1718328719791,-500.0,0.00025479,3]
[329417991,1718328719844,-1902.96,0.00025479,3]
[329417992,1718328719864,-2172.15,0.00025479,3]
[329417993,1718328719890,-773.16,0.00025479,3]
[329417994,1718328719904,-1825.98,0.00025479,3]
[329417995,1718328719918,-500.0,0.00025479,3]
[329417996,1718328719933,-500.0,0.00025479,3]
[329417997,1718328719952,-679.92,0.00025479,3]
[329417998,1718328719969,-986.43,0.00025479,3]
[329417999,1718328719989,-500.0,0.00025479,3]
[329418000,1718328720007,-500.0,0.00025479,3]
[329418001,1718328720029,-1829.1,0.00025479,3]
[329418002,1718328720046,-1832.39,0.00025479,3]
[329418003,1718328720066,-1082.5,0.00025479,3]
[329418004,1718328720086,-638.87,0.00025479,3]
[329418005,1718328720115,-2157.56,0.00025479,3]
[329418006,1718328720134,-906.62,0.00025479,3]
[329418007,1718328720185,-500.0,0.00025479,3]
[329418008,1718328720203,-500.0,0.00025479,3]
[329418009,1718328720232,-690.46,0.00025479,3]
[329418010,1718328720257,-500.0,0.00025479,3]
[329418011,1718328720272,-400.92,0.00025479,3]
[329418012,1718328720290,-988.9,0.00025479,3]
[329418013,1718328720309,-731.35,0.00025479,3]
[329418014,1718328720323,-441.52256198,0.00025479,3]
[329418015,1718328720340,-613.74,0.00025479,3]
[329418016,1718328720356,-27287.16,0.00025479,3]
[329418017,1718328720381,-500.0,0.00025479,3]
[329418018,1718328720396,-500.0,0.00025479,3]
[329418019,1718328720407,-500.0,0.00025479,3]
[329418020,1718328720418,-500.0,0.00025479,3]
[329418021,1718328720434,-910.96,0.00025479,3]
[329418022,1718328720447,-6932.08,0.00025479,3]
[329418023,1718328720466,-500.0,0.00025479,3]
[329418024,1718328720500,-974.92,0.00025479,3]
[329418025,1718328720516,-2616.08,0.00025479,3]
[329418026,1718328720550,-500.0,0.00025479,3]
[329418027,1718328720568,-1080.82,0.00025479,3]
[329418028,1718328720583,-817.09,0.00025479,3]
[329418029,1718328720601,-709.94,0.00025479,3]
[329418030,1718328720624,-500.0,0.00025479,3]
[329418031,1718328720645,-500.0,0.00025479,3]
[329418032,1718328720658,-1643.14,0.00025479,3]
[329418033,1718328720673,-6948.28,0.00025479,3]
[329418034,1718328720690,-2321.35,0.00025479,3]
[329418035,1718328720701,-500.0,0.00025479,3]
[329418036,1718328720719,-2845.46,0.00025479,3]
[329418037,1718328720752,-500.0,0.00025479,3]
[329418038,1718328720774,-1414.89,0.00025479,3]
[329418039,1718328720806,-500.0,0.00025479,3]
[329418040,1718328720817,-500.0,0.00025479,3]
[329418041,1718328720830,-13659.59,0.00025479,3]
[329418042,1718328720844,-1408.71,0.00025479,3]
[329418043,1718328720857,-1393.56,0.00025479,3]
[329418044,1718328720869,-2259.66,0.00025479,3]
[329418045,1718328720893,-1111.31,0.00025479,3]
[329418046,1718328720905,-500.0,0.00025479,3]
[329418047,1718328720922,-500.0,0.00025479,3]
[329418048,1718328720940,-500.0,0.00025479,3]
[329418049,1718328720956,-500.0,0.00025479,3]
[329418050,1718328720970,-500.0,0.00025479,3]
[329418051,1718328720989,-10075.29,0.00025479,3]
[329418052,1718328721009,-500.0,0.00025479,3]
[329418053,1718328721038,-500.0,0.00025479,3]
[329418054,1718328721068,-500.0,0.00025479,3]
[329418055,1718328721081,-943.27,0.00025479,3]
[329418056,1718328721097,-3909.82,0.00025479,3]
[329418057,1718328721127,-1168.64,0.00025479,3]
[329418058,1718328721148,-1483.04,0.00025479,3]
[329418059,1718328721170,-500.0,0.00025479,3]
[329418060,1718328721189,-500.0,0.00025479,3]
[329418061,1718328721202,-4875.13,0.00025479,3]
[329418062,1718328721225,-500.0,0.00025479,3]
[329418063,1718328721251,-500.0,0.00025479,3]
[329418064,1718328721268,-651.52,0.00025479,3]
[329418065,1718328721291,-1146.24,0.00025479,3]
[329418066,1718328721321,-500.0,0.00025479,3]
[329418067,1718328721334,-2483.67,0.00025479,3]
[329418068,1718328721355,-1056.72,0.00025479,3]
[329418069,1718328721368,-500.0,0.00025479,3]
[329418070,1718328721392,-3759.26,0.00025479,3]
[329418071,1718328721406,-2980.85,0.00025479,3]
[329418072,1718328721420,-500.0,0.00025479,3]
[329418073,1718328721434,-287.37915587,0.00025479,3]
[329418074,1718328721447,-2040.13,0.00025479,3]
[329418075,1718328721464,-500.0,0.00025479,3]
[329418076,1718328721478,-726.56,0.00025479,3]
[329418077,1718328721490,-949.95,0.00025479,3]
[329418078,1718328721504,-1026.42,0.00025479,3]
[329418079,1718328721529,-1419.27,0.00025479,3]
[329418080,1718328721544,-585.79455132,0.00025479,3]
[329418081,1718328721557,-500.0,0.00025479,3]
[329418082,1718328721589,-1958.96,0.00025479,3]
[329418083,1718328721638,-500.0,0.00025479,3]
[329418084,1718328721650,-500.0,0.00025479,3]
[329418085,1718328721676,-1457.15,0.00025479,3]
[329418086,1718328721749,-500.0,0.00025479,3]
[329418087,1718328721760,-2166.24,0.00025479,3]
[329418088,1718328721782,-1585.82,0.00025479,3]
[329418089,1718328721794,-1164.45,0.00025479,3]
[329418090,1718328721818,-1370.89,0.00025479,3]
[329418091,1718328721842,-500.0,0.00025479,3]
[329418092,1718328721857,-500.0,0.00025479,3]
[329418093,1718328722083,-500.0,0.00025479,3]
[329418094,1718328722095,-500.0,0.00025479,3]
[329418095,1718328722116,-979.9,0.00025479,3]
[329418096,1718328722137,-1246.72,0.00025479,3]
[329418097,1718328722159,-617.62,0.00025479,3]
[329418098,1718328722173,-1310.68,0.00025479,3]
[329418099,1718328722187,-500.0,0.00025479,3]
[329418100,1718328722198,-976.37,0.00025479,3]
[329418101,1718328722211,-2479.24,0.00025479,3]
[329418102,1718328722225,-928.5,0.00025479,3]
[329418103,1718328722237,-1915.78,0.00025479,3]
[329418104,1718328722251,-500.0,0.00025479,3]
[329418105,1718328722267,-9450.18,0.00025479,3]
[329418106,1718328722280,-758.88,0.00025479,3]
[329418107,1718328722302,-500.0,0.00025479,3]
[329418108,1718328722314,-500.0,0.00025479,3]
[329418109,1718328722334,-4571.95,0.00025479,3]
[329418110,1718328722348,-1010.1,0.00025479,3]
[329418111,1718328722365,-3729.75,0.00025479,3]
[329418112,1718328722386,-1160.9,0.00025479,3]
[329418113,1718328722400,-1291.17,0.00025479,3]
[329418114,1718328722413,-1442.54,0.00025479,3]
[329418115,1718328722433,-500.0,0.00025479,3]
[329418116,1718328722449,-1437.83,0.00025479,3]
[329418117,1718328722460,-1078.82,0.00025479,3]
[329418118,1718328722478,-3179.39,0.00025479,3]
[329418119,1718328722489,-4644.91,0.00025479,3]
[329418120,1718328722508,-660.45,0.00025479,3]
[329418121,1718328722528,-500.0,0.00025479,3]
[329418122,1718328722540,-500.0,0.00025479,3]
[329418123,1718328722556,-3968.87,0.00025479,3]
[329418124,1718328722567,-500.0,0.00025479,3]
[329418125,1718328722581,-1085.81,0.00025479,3]
[329418126,1718328722599,-2460.17,0.00025479,3]
[329418127,1718328722611,-3852.04,0.00025479,3]
[329418128,1718328722625,-524.29329108,0.00025479,3]
[329418129,1718328722639,-4640.65,0.00025479,3]
[329418130,1718328722653,-855.86,0.00025479,3]
[329418131,1718328722679,-1149.69,0.00025479,3]
[329418132,1718328722693,-164.775248,0.00025479,7]
[329418133,1718328722728,-164.775248,0.00025479,7]
[329418134,1718328722795,-2477.54,0.00025479,3]
[329418135,1718328722806,-781.38,0.00025479,3]
[329418136,1718328722819,-2739.81,0.00025479,3]
[329418137,1718328722830,-500.0,0.00025479,3]
[329418138,1718328722840,-164.775248,0.00025479,7]
[329418139,1718328722880,-164.775248,0.00025479,7]
[329418140,1718328722892,-500.0,0.00025479,3]
[329418141,1718328722908,-22917.63,0.00025479,3]
[329418142,1718328722920,-2363.24,0.00025479,3]
[329418143,1718328722948,-801.82,0.00025479,3]
[329418144,1718328722963,-1182.53,0.00025479,3]
[329418145,1718328722977,-1037.71,0.00025479,3]
[329418146,1718328723021,-2489.52,0.00025479,3]
[329418147,1718328723033,-500.0,0.00025479,3]
[329418148,1718328723046,-671.04,0.00025479,3]
[329418149,1718328723057,-2448.61,0.00025479,3]
[329418150,1718328723068,-709.17,0.00025479,3]
[329418151,1718328723080,-2250.55,0.00025479,3]
[329418152,1718328723092,-649.40923625,0.00025479,3]
[329418153,1718328723103,-1131.25,0.00025479,3]
[329418154,1718328723145,-663.02,0.00025479,3]
[329418155,1718328723161,-2614.62,0.00025479,3]
[329418156,1718328723172,-500.0,0.00025479,3]
[329418157,1718328723187,-500.0,0.00025479,3]
[329418158,1718328723204,-560.42,0.00025479,3]
[329418159,1718328723232,-500.0,0.00025479,3]
[329418160,1718328723250,-500.0,0.00025479,3]
[329418161,1718328723263,-3845.21,0.00025479,3]
[329418162,1718328723286,-967.09,0.00025479,3]
[329418163,1718328723300,-500.0,0.00025479,3]
[329418164,1718328723313,-3200.03,0.00025479,3]
[329418165,1718328723327,-250.0,0.00025479,3]
[329418166,1718328723341,-500.0,0.00025479,3]
[329418167,1718328723376,-714.39,0.00025479,3]
[329418168,1718328723391,-2771.64,0.00025479,3]
[329418169,1718328723403,-6182.51,0.00025479,3]
[329418170,1718328723414,-500.0,0.00025479,3]
[329418171,1718328723428,-1117.03,0.00025479,3]
[329418172,1718328723440,-500.0,0.00025479,3]
[329418173,1718328723481,-818.88,0.00025479,3]
[329418174,1718328723492,-500.0,0.00025479,3]
[329418175,1718328723508,-213.44531718,0.00025479,3]
[329418176,1718328723524,-13361.61,0.00025479,3]